[Event "44th Chess Olympiad Women 2022"]
[Site "Chennai"]
[Date "2022.08.08"]
[Round "10.31"]
[White "Roy, Ali"]
[Black "Hng, Mei-En Emmanuelle"]
[Result "1/2-1/2"]
[WhiteElo "1893"]
[BlackElo "1997"]
[Annotator "NA RC"]
[PlyCount "94"]
[EventDate "2022.??.??"]
[TimeControl "60"]

1. Nf3 {[%emt 0:00:04]} Nf6 {[%emt 0:00:27]} 2. g3 {[%emt 0:00:04]} c5 {
[%emt 0:00:18]} 3. Bg2 {[%emt 0:00:07]} Nc6 {[%emt 0:00:18]} 4. O-O {[%emt 0:
00:00]} e6 {[%emt 0:00:19]} 5. d3 {[%emt 0:00:37]} Be7 {[%emt 0:00:55]} 6. e4 {
[%emt 0:00:25]} O-O {[%emt 0:00:51]} 7. Nbd2 {[%emt 0:00:09]} d6 {[%emt 0:00:
00]} 8. Re1 {[%emt 0:01:18]} Qc7 {[%emt 0:02:37]} 9. Nf1 {[%emt 0:03:21]} Rb8 {
[%emt 0:03:00]} 10. c3 {[%emt 0:03:24]} b5 {[%emt 0:05:32]} 11. Bd2 {[%emt 0:
00:00]} a5 {[%emt 0:13:11]} 12. d4 {[%emt 0:02:51]} Nd7 {[%emt 0:07:05]} 13. h4
{[%emt 0:02:54]} Re8 {[%emt 0:03:55]} 14. N1h2 {[%emt 0:01:33]} b4 {[%emt 0:00:
00]} 15. Rc1 {[%emt 0:10:50]} Ba6 {[%emt 0:02:50]} 16. Ng4 {[%emt 0:01:41]}
bxc3 {[%emt 0:03:23]} 17. Bxc3 {[%emt 0:01:40]} Nb4 {[%emt 0:01:13]} 18. Bxb4 {
[%emt 0:05:30]} Rxb4 {[%emt 0:01:35]} 19. b3 {[%emt 0:07:49]} Qa7 {[%emt 0:00:
00]} 20. d5 {[%emt 0:03:54]} e5 {[%emt 0:16:29]} 21. Nd2 {[%emt 0:08:31]} a4 {
[%emt 0:04:26]} 22. Bf1 {[%emt 0:04:32]} axb3 {[%emt 0:01:24]} 23. axb3 {
[%emt 0:00:15]} Bxf1 {[%emt 0:00:42]} 24. Rxf1 {[%emt 0:01:27]} Nf6 {[%emt 0:
00:00]} 25. Nxf6+ {[%emt 0:01:16]} Bxf6 {[%emt 0:00:11]} 26. Nc4 {[%emt 0:00:
00]} Qd7 {[%emt 0:03:33]} 27. Ra1 {[%emt 0:01:19]} Reb8 {[%emt 0:01:23]} 28.
Na5 {[%emt 0:05:30]} Rxe4 {[%emt 0:01:16]} 29. Nc6 {[%emt 0:00:07]} Rf8 {
[%emt 0:01:34]} 30. Ra7 {[%emt 0:00:09]} Qf5 {[%emt 0:01:11]} 31. Qd2 {[%emt 0:
00:00]} Rd4 {[%emt 0:01:13]} 32. Nxd4 {[%emt 0:05:16]} exd4 {[%emt 0:00:01]}
33. Rfa1 {[%emt 0:02:06]} Qxd5 {[%emt 0:00:51]} 34. Qa5 {[%emt 0:01:17]} Qxb3 {
[%emt 0:02:00]} 35. Ra8 {[%emt 0:00:26]} g6 {[%emt 0:00:10]} 36. Qc7 {[%emt 0:
00:00]} d3 {[%emt 0:00:55]} 37. Rxf8+ {[%emt 0:00:30]} Kxf8 {[%emt 0:00:02]}
38. Qxd6+ {[%emt 0:00:27]} Kg7 {[%emt 0:00:24]} 39. Ra8 {[%emt 0:00:32]} Bd4 {
[%emt 0:00:58]} 40. Qf8+ {[%emt 0:01:31]} Kf6 {[%emt 0:00:10]} 41. Qd6+ {
[%emt 0:30:58]} Qe6 {[%emt 0:31:02]} 42. Qd8+ {[%emt 0:01:48]} Ke5 {[%emt 0:00:
00]} 43. Qg5+ {[%emt 0:00:00]} Qf5 {[%emt 0:00:00]} 44. Qe7+ {[%emt 0:00:00]}
Kd5 {[%emt 0:00:00]} 45. Qb7+ {[%emt 0:00:00]} Ke5 {[%emt 0:00:00]} 46. Re8+ {
[%emt 0:00:00]} Kd6 {[%emt 0:00:00]} 47. Rd8+ {[%emt 0:00:00]} Ke5 {[%emt 0:00:
00]} 1/2-1/2

[Event "44th Chess Olympiad Women 2022"]
[Site "Chennai"]
[Date "2022.08.08"]
[Round "10.32"]
[White "Palacios, Celina"]
[Black "Matute Escobar, Roxanny"]
[Result "1-0"]
[WhiteElo "1715"]
[BlackElo "1834"]
[Annotator "NA RC"]
[PlyCount "107"]
[EventDate "2022.??.??"]
[TimeControl "60"]

1. e4 {[%emt 0:00:40]} c5 {[%emt 0:00:07]} 2. Nf3 {[%emt 0:00:19]} d6 {[%emt 0:
00:00]} 3. d4 {[%emt 0:00:20]} cxd4 {[%emt 0:00:15]} 4. Qd2 {[%emt 0:00:19]} d3
5. Qxd3 {[%emt 0:00:30]} Nc6 {[%emt 0:00:47]} 6. Qe3 {[%emt 0:00:26]} g6 {
[%emt 0:00:36]} 7. Be2 {[%emt 0:00:55]} Bg7 {[%emt 0:00:14]} 8. O-O {[%emt 0:
00:00]} Nf6 {[%emt 0:00:43]} 9. h3 {[%emt 0:00:19]} O-O {[%emt 0:00:44]} 10. c4
{[%emt 0:03:53]} Bd7 {[%emt 0:05:02]} 11. Nc3 {[%emt 0:02:11]} Rc8 {[%emt 0:00:
00]} 12. Rb1 {[%emt 0:02:06]} Be6 {[%emt 0:11:33]} 13. Ng5 {[%emt 0:03:01]} Nd7
{[%emt 0:01:08]} 14. Rd1 {[%emt 0:09:07]} Qa5 {[%emt 0:08:53]} 15. a3 {[%emt 0:
00:00]} h6 {[%emt 0:12:01]} 16. Nf3 {[%emt 0:08:37]} Nce5 {[%emt 0:03:44]} 17.
Nxe5 {[%emt 0:05:38]} Qxe5 {[%emt 0:04:57]} 18. Nd5 {[%emt 0:06:45]} Bxd5 {
[%emt 0:01:29]} 19. Rxd5 {[%emt 0:00:42]} Qf6 {[%emt 0:00:54]} 20. b3 {[%emt 0:
00:00]} Nb6 {[%emt 0:04:12]} 21. Ra5 {[%emt 0:02:36]} Ra8 {[%emt 0:10:03]} 22.
Bb2 {[%emt 0:04:29]} e5 {[%emt 0:00:10]} 23. c5 {[%emt 0:01:00]} dxc5 {[%emt 0:
00:00]} 24. Rxc5 {[%emt 0:00:51]} Qe6 {[%emt 0:03:29]} 25. Rc7 {[%emt 0:03:49]}
Rfd8 {[%emt 0:07:47]} 26. Rbc1 {[%emt 0:04:54]} Rab8 {[%emt 0:05:17]} 27. Bg4 {
[%emt 0:02:25]} Qd6 {[%emt 0:01:08]} 28. Qf3 {[%emt 0:02:02]} Bf6 {[%emt 0:00:
00]} 29. a4 {[%emt 0:03:49]} h5 {[%emt 0:01:03]} 30. Bxh5 {[%emt 0:00:21]} gxh5
{[%emt 0:00:07]} 31. Qxh5 {[%emt 0:00:03]} Qe6 {[%emt 0:00:20]} 32. R1c3 {
[%emt 0:00:42]} Bg7 {[%emt 0:11:31]} 33. Rg3 {[%emt 0:00:38]} Nd7 {[%emt 0:00:
00]} 34. Rxd7 {[%emt 0:09:30]} Rxd7 {[%emt 0:01:01]} 35. Bxe5 {[%emt 0:00:07]}
f6 {[%emt 0:00:27]} 36. Bxb8 {[%emt 0:00:13]} Qxe4 {[%emt 0:00:29]} 37. Bxa7 {
[%emt 0:00:40]} Qe1+ {[%emt 0:00:08]} 38. Kh2 {[%emt 0:00:14]} Rd1 {[%emt 0:00:
00]} 39. Re3 {[%emt 0:00:27]} Qg1+ {[%emt 0:00:09]} 40. Kg3 {[%emt 0:00:08]}
Rd8 {[%emt 0:00:13]} 41. Re8+ {[%emt 0:30:17]} Rxe8 {[%emt 0:30:04]} 42. Qxe8+
{[%emt 0:00:06]} Kh7 {[%emt 0:00:08]} 43. Qe4+ {[%emt 0:00:42]} Kg8 {[%emt 0:
00:00]} 44. Qxb7 {[%emt 0:00:29]} Qd1 {[%emt 0:00:26]} 45. Be3 {[%emt 0:01:54]}
Bf8 {[%emt 0:00:39]} 46. Bf4 {[%emt 0:01:43]} Qd4 {[%emt 0:01:14]} 47. a5 {
[%emt 0:01:58]} Bc5 {[%emt 0:00:40]} 48. Qf3 {[%emt 0:00:00]} f5 {[%emt 0:00:
00]} 49. Qe2 {[%emt 0:00:00]} Qc3+ {[%emt 0:00:00]} 50. f3 {[%emt 0:00:00]}
Qg7+ {[%emt 0:00:00]} 51. Kh2 {[%emt 0:00:00]} Qa7 {[%emt 0:00:00]} 52. Qe8+ {
[%emt 0:00:00]} Kh7 {[%emt 0:00:00]} 53. Qh5+ {[%emt 0:00:00]} Kg8 {[%emt 0:00:
00]} 54. Qg6+ {[%emt 0:00:00]} 1-0

[Event "44th Chess Olympiad Women 2022"]
[Site "Chennai"]
[Date "2022.08.08"]
[Round "10.32"]
[White "Rovira Contreras, Tairu Manuela"]
[Black "Herrera, Marjorie"]
[Result "1-0"]
[WhiteElo "2036"]
[BlackElo "1760"]
[Annotator "NA RC"]
[PlyCount "145"]
[EventDate "2022.??.??"]
[TimeControl "60"]

1. d4 {[%emt 0:00:04]} Nf6 {[%emt 0:00:13]} 2. c4 {[%emt 0:00:07]} g6 {[%emt 0:
00:00]} 3. Nc3 {[%emt 0:00:16]} Bg7 {[%emt 0:00:14]} 4. e4 {[%emt 0:00:39]} d6
{[%emt 0:00:24]} 5. f3 {[%emt 0:00:23]} O-O {[%emt 0:00:24]} 6. Be3 {[%emt 0:
00:00]} e5 {[%emt 0:00:31]} 7. d5 {[%emt 0:00:36]} a6 {[%emt 0:00:31]} 8. Qd2 {
[%emt 0:01:25]} c6 {[%emt 0:01:24]} 9. h4 {[%emt 0:04:04]} cxd5 {[%emt 0:01:21]
} 10. cxd5 {[%emt 0:00:49]} b5 {[%emt 0:03:32]} 11. g4 {[%emt 0:05:18]} h5 {
[%emt 0:01:03]} 12. Qg2 {[%emt 0:27:03]} Nbd7 {[%emt 0:06:41]} 13. Be2 {
[%emt 0:04:33]} Qa5 {[%emt 0:13:57]} 14. Nh3 {[%emt 0:04:30]} b4 {[%emt 0:00:
00]} 15. Nd1 {[%emt 0:01:24]} Nc5 {[%emt 0:01:45]} 16. Bc4 {[%emt 0:08:39]}
hxg4 {[%emt 0:08:21]} 17. Nhf2 {[%emt 0:01:10]} g3 {[%emt 0:09:07]} 18. Qxg3 {
[%emt 0:01:10]} Nh5 {[%emt 0:00:25]} 19. Qh2 {[%emt 0:00:37]} b3+ {[%emt 0:00:
00]} 20. Nc3 {[%emt 0:02:45]} bxa2 {[%emt 0:06:39]} 21. Rxa2 {[%emt 0:03:19]}
Qb4 {[%emt 0:01:06]} 22. Be2 {[%emt 0:02:04]} Bd7 {[%emt 0:03:13]} 23. O-O {
[%emt 0:04:09]} Nb3 {[%emt 0:13:28]} 24. Nd3 {[%emt 0:05:17]} Qb8 {[%emt 0:00:
00]} 25. Bd1 {[%emt 0:03:19]} Nd4 {[%emt 0:00:23]} 26. Qf2 {[%emt 0:00:31]} Nb5
{[%emt 0:05:17]} 27. Na4 {[%emt 0:02:23]} Bh3 {[%emt 0:05:20]} 28. Re1 {
[%emt 0:00:12]} Qd8 {[%emt 0:01:42]} 29. Kh2 {[%emt 0:01:24]} Bd7 {[%emt 0:00:
00]} 30. Nb6 {[%emt 0:00:43]} Bf6 {[%emt 0:02:52]} 31. Bg5 {[%emt 0:02:20]} Ra7
{[%emt 0:00:28]} 32. Nxd7 {[%emt 0:00:27]} Qxd7 {[%emt 0:03:57]} 33. Rg1 {
[%emt 0:03:25]} Qe7 {[%emt 0:00:00]} 34. Ra4 {[%emt 0:04:15]} Bxg5 {[%emt 0:00:
00]} 35. Rxg5 {[%emt 0:00:40]} Qf6 {[%emt 0:00:02]} 36. Rg4 {[%emt 0:02:36]}
Raa8 {[%emt 0:00:55]} 37. Qe3 {[%emt 0:01:26]} Kh7 {[%emt 0:00:33]} 38. Nb4 {
[%emt 0:00:53]} a5 {[%emt 0:00:41]} 39. Nc6 {[%emt 0:00:18]} Rfc8 {[%emt 0:00:
00]} 40. Be2 {[%emt 0:00:24]} Nc7 {[%emt 0:00:23]} 41. Qg5 {[%emt 0:15:22]}
Qxg5 {[%emt 0:11:25]} 42. hxg5 {[%emt 0:00:10]} Nf4 {[%emt 0:00:13]} 43. Bf1 {
[%emt 0:00:22]} Kg7 {[%emt 0:00:47]} 44. Rh4 {[%emt 0:00:47]} Na6 {[%emt 0:00:
00]} 45. Rxa5 {[%emt 0:01:29]} Nc5 {[%emt 0:00:12]} 46. b4 {[%emt 0:01:06]}
Ncd3 {[%emt 0:03:39]} 47. Kg3 {[%emt 0:01:42]} Rxa5 {[%emt 0:06:51]} 48. bxa5 {
[%emt 0:00:32]} Ra8 {[%emt 0:00:23]} 49. Rh2 {[%emt 0:01:09]} Nc5 {[%emt 0:00:
00]} 50. Rb2 {[%emt 0:03:30]} Nh5+ {[%emt 0:03:13]} 51. Kf2 {[%emt 0:01:55]}
Nf4 {[%emt 0:00:24]} 52. Ke3 {[%emt 0:00:38]} f5 {[%emt 0:03:22]} 53. gxf6+ {
[%emt 0:01:31]} Kxf6 {[%emt 0:00:09]} 54. Rb8 {[%emt 0:00:29]} Rxb8 {[%emt 0:
00:00]} 55. Nxb8 {[%emt 0:00:06]} Nh5 {[%emt 0:00:41]} 56. a6 {[%emt 0:00:25]}
Nxa6 {[%emt 0:00:12]} 57. Bxa6 {[%emt 0:00:12]} Ke7 {[%emt 0:00:22]} 58. Bf1 {
[%emt 0:00:27]} Nf4 {[%emt 0:00:16]} 59. Nc6+ {[%emt 0:00:39]} Kd7 {[%emt 0:00:
00]} 60. Nb4 {[%emt 0:00:08]} Ke7 {[%emt 0:00:43]} 61. Nd3 {[%emt 0:00:20]} Nh5
{[%emt 0:00:10]} 62. Bh3 {[%emt 0:00:21]} Kf6 {[%emt 0:00:11]} 63. Bg4 {
[%emt 0:00:08]} Ng7 {[%emt 0:00:07]} 64. Nb2 {[%emt 0:00:45]} Ke7 {[%emt 0:00:
00]} 65. Kf2 {[%emt 0:00:12]} g5 {[%emt 0:01:08]} 66. Nc4 {[%emt 0:00:12]} Ne8
{[%emt 0:00:07]} 67. Ke2 {[%emt 0:00:34]} Nf6 {[%emt 0:01:45]} 68. Kd3 {
[%emt 0:00:11]} Ne8 {[%emt 0:00:29]} 69. Kc3 {[%emt 0:00:11]} Nc7 {[%emt 0:00:
00]} 70. Kb4 {[%emt 0:00:15]} Na6+ {[%emt 0:00:57]} 71. Kb5 {[%emt 0:00:09]}
Nc7+ {[%emt 0:00:07]} 72. Kc6 {[%emt 0:00:06]} Ne8 {[%emt 0:00:07]} 73. Bh3 {
[%emt 0:00:22]} 1-0

[Event "44th Chess Olympiad Women 2022"]
[Site "Chennai"]
[Date "2022.08.08"]
[Round "10.32"]
[White "Varela La Madrid, Tilsia Carolina"]
[Black "Ortez, Andrea"]
[Result "1-0"]
[WhiteElo "2079"]
[BlackElo "1908"]
[Annotator "NA RC"]
[PlyCount "141"]
[EventDate "2022.??.??"]
[TimeControl "60"]

1. e4 {[%emt 0:00:02]} c5 {[%emt 0:00:09]} 2. c3 {[%emt 0:00:04]} d5 {[%emt 0:
00:00]} 3. exd5 {[%emt 0:02:56]} Qxd5 {[%emt 0:00:09]} 4. d4 {[%emt 0:00:03]}
Nc6 {[%emt 0:00:57]} 5. Nf3 {[%emt 0:00:08]} g6 {[%emt 0:02:40]} 6. Na3 {
[%emt 0:03:44]} a6 {[%emt 0:06:06]} 7. Bc4 {[%emt 0:02:22]} Qd6 {[%emt 0:04:01]
} 8. dxc5 {[%emt 0:03:21]} Qxc5 {[%emt 0:00:52]} 9. Be3 {[%emt 0:00:54]} Qh5 {
[%emt 0:01:12]} 10. Qb3 {[%emt 0:04:16]} e6 {[%emt 0:02:28]} 11. O-O-O {
[%emt 0:05:07]} Nge7 {[%emt 0:02:34]} 12. h3 {[%emt 0:04:24]} Bh6 {[%emt 0:00:
00]} 13. Qb6 {[%emt 0:06:28]} O-O {[%emt 0:07:51]} 14. g4 {[%emt 0:00:42]} Qa5
{[%emt 0:01:37]} 15. g5 {[%emt 0:00:57]} Bg7 {[%emt 0:02:09]} 16. Qxa5 {
[%emt 0:00:22]} Nxa5 {[%emt 0:00:04]} 17. Bc5 {[%emt 0:01:23]} Nac6 {[%emt 0:
00:00]} 18. Nd4 {[%emt 0:17:09]} Re8 {[%emt 0:02:18]} 19. Nxc6 {[%emt 0:00:30]}
Nxc6 {[%emt 0:00:18]} 20. Bb6 {[%emt 0:00:33]} e5 {[%emt 0:08:59]} 21. Nc2 {
[%emt 0:00:49]} h6 {[%emt 0:07:40]} 22. h4 {[%emt 0:01:49]} e4 {[%emt 0:12:36]}
23. Rhe1 {[%emt 0:08:54]} Bg4 {[%emt 0:16:57]} 24. Rd6 {[%emt 0:04:48]} Ne5 {
[%emt 0:00:28]} 25. Rxe4 {[%emt 0:02:09]} Bf5 {[%emt 0:00:16]} 26. Rf4 {
[%emt 0:00:17]} hxg5 {[%emt 0:07:49]} 27. hxg5 {[%emt 0:00:21]} Nxc4 {[%emt 0:
00:00]} 28. Rxc4 {[%emt 0:00:14]} Re2 {[%emt 0:04:52]} 29. Rd2 {[%emt 0:00:34]}
Re6 {[%emt 0:01:16]} 30. Bd4 {[%emt 0:02:11]} b5 {[%emt 0:01:01]} 31. Rc7 {
[%emt 0:00:19]} Rae8 {[%emt 0:00:22]} 32. Ne3 {[%emt 0:01:08]} Be5 {[%emt 0:00:
00]} 33. Bxe5 {[%emt 0:04:48]} Rxe5 {[%emt 0:00:02]} 34. Rd5 {[%emt 0:11:24]}
Bh3 {[%emt 0:00:02]} 35. Rcc5 {[%emt 0:00:39]} R5e7 {[%emt 0:00:37]} 36. b3 {
[%emt 0:00:33]} Kg7 {[%emt 0:00:40]} 37. Kd2 {[%emt 0:00:36]} Be6 {[%emt 0:00:
00]} 38. Rd6 {[%emt 0:00:23]} Ra7 {[%emt 0:00:09]} 39. Rcc6 {[%emt 0:01:47]} a5
{[%emt 0:00:31]} 40. Ra6 {[%emt 0:00:15]} Rea8 {[%emt 0:00:07]} 41. Rxa7 {
[%emt 0:30:07]} Rxa7 {[%emt 0:30:01]} 42. Rb6 {[%emt 0:02:37]} b4 {[%emt 0:00:
00]} 43. c4 {[%emt 0:00:00]} Kf8 {[%emt 0:00:00]} 44. Rb5 {[%emt 0:00:00]} Ke8
{[%emt 0:00:00]} 45. Kd3 {[%emt 0:00:00]} Rd7+ {[%emt 0:00:00]} 46. Nd5 {
[%emt 0:00:00]} Bf5+ {[%emt 0:00:00]} 47. Kd4 {[%emt 0:00:00]} Ra7 {[%emt 0:00:
00]} 48. Nf6+ {[%emt 0:00:00]} Kd8 {[%emt 0:00:00]} 49. Re5 {[%emt 0:00:00]}
Be6 {[%emt 0:00:00]} 50. Kc5 {[%emt 0:00:00]} Kc8 {[%emt 0:01:10]} 51. Kb6 {
[%emt 0:00:00]} Rb7+ {[%emt 0:03:42]} 52. Kxa5 {[%emt 0:00:00]} Ra7+ {[%emt 0:
00:00]} 53. Kxb4 {[%emt 0:00:00]} Rxa2 {[%emt 0:00:04]} 54. f4 {[%emt 0:00:00]}
Rf2 {[%emt 0:00:18]} 55. Re4 {[%emt 0:00:00]} Rf3 {[%emt 0:00:11]} 56. Nd5 {
[%emt 0:00:00]} Kd7 {[%emt 0:01:08]} 57. Rd4 {[%emt 0:00:00]} Kc6 {[%emt 0:00:
00]} 58. Ne7+ {[%emt 0:00:52]} Kc7 {[%emt 0:00:05]} 59. Ka3 {[%emt 0:02:07]}
Kb7 {[%emt 0:01:18]} 60. Kb2 {[%emt 0:00:42]} Rf2+ {[%emt 0:00:16]} 61. Ka3 {
[%emt 0:00:41]} Rf3 {[%emt 0:00:04]} 62. Ka4 {[%emt 0:00:30]} Kc7 {[%emt 0:00:
00]} 63. b4 {[%emt 0:00:10]} Rf1 {[%emt 0:00:33]} 64. Nd5+ {[%emt 0:01:16]} Kc6
{[%emt 0:00:41]} 65. Ne7+ {[%emt 0:00:19]} Kc7 {[%emt 0:00:08]} 66. b5 {
[%emt 0:00:31]} Ra1+ {[%emt 0:00:31]} 67. Kb4 {[%emt 0:00:07]} Rc1 {[%emt 0:00:
00]} 68. Kc5 {[%emt 0:00:18]} Kb7 {[%emt 0:00:43]} 69. Nc6 {[%emt 0:00:09]} Kc7
{[%emt 0:00:35]} 70. b6+ {[%emt 0:00:20]} Kb7 {[%emt 0:00:20]} 71. Na5+ {
[%emt 0:00:19]} 1-0

[Event "44th Chess Olympiad Women 2022"]
[Site "Chennai"]
[Date "2022.08.08"]
[Round "10.32"]
[White "Zavala Galindo, Alejandra Beatriz"]
[Black "Otazo Sanchez, Annyd Gabriela"]
[Result "0-1"]
[WhiteElo "1748"]
[BlackElo "1932"]
[Annotator "NA RC"]
[PlyCount "128"]
[EventDate "2022.??.??"]
[TimeControl "60"]

1. e4 {[%emt 0:00:05]} e5 {[%emt 0:00:04]} 2. Bc4 {[%emt 0:00:18]} Nf6 {
[%emt 0:00:45]} 3. d3 {[%emt 0:00:30]} Nc6 {[%emt 0:04:17]} 4. Nf3 {[%emt 0:00:
00]} Be7 {[%emt 0:02:01]} 5. Bb3 {[%emt 0:01:46]} O-O {[%emt 0:00:12]} 6. O-O {
[%emt 0:00:27]} d5 {[%emt 0:02:02]} 7. Nbd2 {[%emt 0:02:15]} Bg4 {[%emt 0:00:
00]} 8. c3 {[%emt 0:04:01]} h6 {[%emt 0:00:39]} 9. h3 {[%emt 0:00:32]} Bh5 {
[%emt 0:01:51]} 10. Re1 {[%emt 0:04:09]} Qd7 {[%emt 0:17:12]} 11. Nf1 {[%emt 0:
00:00]} dxe4 {[%emt 0:15:12]} 12. dxe4 {[%emt 0:00:28]} Rad8 {[%emt 0:00:34]}
13. Ng3 {[%emt 0:08:38]} Qxd1 {[%emt 0:01:26]} 14. Bxd1 {[%emt 0:00:14]} Bxf3 {
[%emt 0:05:08]} 15. Bxf3 {[%emt 0:00:11]} Bc5 {[%emt 0:00:27]} 16. Be3 {
[%emt 0:06:26]} Bxe3 {[%emt 0:00:15]} 17. Rxe3 {[%emt 0:00:08]} Rd2 {[%emt 0:
00:00]} 18. Re2 {[%emt 0:05:35]} Rfd8 {[%emt 0:02:50]} 19. Rae1 {[%emt 0:02:43]
} a5 {[%emt 0:06:07]} 20. Nf1 {[%emt 0:07:33]} Rxe2 {[%emt 0:02:40]} 21. Bxe2 {
[%emt 0:05:54]} Nxe4 {[%emt 0:07:16]} 22. Bf3 {[%emt 0:00:41]} f5 {[%emt 0:00:
00]} 23. Bxe4 {[%emt 0:00:07]} fxe4 {[%emt 0:00:01]} 24. Rxe4 {[%emt 0:00:03]}
Rd1 {[%emt 0:00:17]} 25. f3 {[%emt 0:01:26]} Ra1 {[%emt 0:01:10]} 26. a3 {
[%emt 0:01:27]} Rb1 {[%emt 0:00:10]} 27. Re2 {[%emt 0:01:35]} a4 {[%emt 0:00:
00]} 28. Kf2 {[%emt 0:01:30]} Kf7 {[%emt 0:01:06]} 29. Ne3 {[%emt 0:02:33]} Ke6
{[%emt 0:00:37]} 30. Rd2 {[%emt 0:03:42]} Na5 {[%emt 0:05:40]} 31. Kg3 {
[%emt 0:10:07]} b5 {[%emt 0:00:40]} 32. Kg4 {[%emt 0:05:05]} g6 {[%emt 0:02:53]
} 33. Kg3 {[%emt 0:07:09]} c5 {[%emt 0:03:36]} 34. Kf2 {[%emt 0:03:18]} c4 {
[%emt 0:01:47]} 35. Nd5 {[%emt 0:03:55]} Nb3 {[%emt 0:01:40]} 36. Nc7+ {
[%emt 0:00:11]} Ke7 {[%emt 0:00:16]} 37. Re2 {[%emt 0:01:26]} Nc1 {[%emt 0:00:
00]} 38. Rd2 {[%emt 0:01:14]} Nd3+ {[%emt 0:01:44]} 39. Ke3 {[%emt 0:00:47]}
Nxb2 {[%emt 0:00:57]} 40. Nxb5 {[%emt 0:00:15]} Nd1+ {[%emt 0:03:37]} 41. Ke2 {
[%emt 0:30:16]} Rxb5 {[%emt 0:30:54]} 42. Rxd1 {[%emt 0:01:22]} Rb3 {[%emt 0:
00:00]} 43. Rd5 {[%emt 0:00:00]} Ke6 {[%emt 0:00:00]} 44. Ra5 {[%emt 0:00:00]}
Rxa3 {[%emt 0:00:00]} 45. Ra6+ {[%emt 0:00:00]} Kf5 {[%emt 0:00:00]} 46. g4+ {
[%emt 0:00:00]} Kg5 {[%emt 0:00:00]} 47. h4+ {[%emt 0:00:00]} Kxh4 {[%emt 0:00:
00]} 48. Rxg6 {[%emt 0:00:00]} Rxc3 {[%emt 0:00:00]} 49. Rxh6+ {[%emt 0:00:00]}
Kg3 {[%emt 0:00:00]} 50. Ra6 {[%emt 0:00:00]} a3 {[%emt 0:00:00]} 51. g5 {
[%emt 0:00:00]} Kf4 {[%emt 0:00:00]} 52. g6 {[%emt 0:00:00]} Rc2+ {[%emt 0:00:
00]} 53. Kd1 {[%emt 0:00:00]} Rg2 {[%emt 0:00:00]} 54. Rxa3 {[%emt 0:00:23]}
Rxg6 {[%emt 0:00:00]} 55. Rc3 {[%emt 0:00:29]} Rd6+ {[%emt 0:01:45]} 56. Ke2 {
[%emt 0:00:35]} Rd4 {[%emt 0:00:08]} 57. Kf2 {[%emt 0:00:51]} Rd2+ {[%emt 0:00:
00]} 58. Ke1 {[%emt 0:00:25]} Rd3 {[%emt 0:01:28]} 59. Rxc4+ {[%emt 0:00:23]}
Kxf3 {[%emt 0:00:02]} 60. Rh4 {[%emt 0:00:59]} Ke3 {[%emt 0:01:07]} 61. Rh3+ {
[%emt 0:00:35]} Kd4 {[%emt 0:00:10]} 62. Rxd3+ {[%emt 0:00:47]} Kxd3 {[%emt 0:
00:00]} 63. Kd1 {[%emt 0:00:06]} e4 {[%emt 0:00:13]} 64. Ke1 {[%emt 0:00:11]}
Ke3 {[%emt 0:00:07]} 0-1

[Event "44th Chess Olympiad Women 2022"]
[Site "Chennai"]
[Date "2022.08.08"]
[Round "10.33"]
[White "Pipiras, Filipa Fortuna"]
[Black "Quevedo, Andreina"]
[Result "1-0"]
[WhiteElo "2139"]
[BlackElo "1841"]
[Annotator "NA RC"]
[PlyCount "89"]
[EventDate "2022.??.??"]
[TimeControl "60"]

1. d4 {[%emt 0:00:21]} Nf6 {[%emt 0:00:13]} 2. c4 {[%emt 0:00:30]} e6 {[%emt 0:
00:00]} 3. Nc3 {[%emt 0:00:32]} Bb4 {[%emt 0:00:16]} 4. Qc2 {[%emt 0:00:36]}
Nc6 {[%emt 0:00:30]} 5. Nf3 {[%emt 0:00:55]} d6 {[%emt 0:00:46]} 6. Bd2 {
[%emt 0:00:44]} O-O {[%emt 0:00:31]} 7. a3 {[%emt 0:00:40]} Bxc3 {[%emt 0:00:
00]} 8. Bxc3 {[%emt 0:00:15]} Re8 {[%emt 0:02:47]} 9. e3 {[%emt 0:01:06]} a5 {
[%emt 0:01:38]} 10. Be2 {[%emt 0:01:10]} e5 {[%emt 0:02:47]} 11. dxe5 {[%emt 0:
00:00]} dxe5 {[%emt 0:00:38]} 12. O-O {[%emt 0:00:55]} Bg4 {[%emt 0:03:36]} 13.
b4 {[%emt 0:15:43]} axb4 {[%emt 0:17:31]} 14. axb4 {[%emt 0:00:31]} Rxa1 {
[%emt 0:14:30]} 15. Rxa1 {[%emt 0:00:25]} e4 {[%emt 0:06:48]} 16. Nd4 {[%emt 0:
00:00]} Ne5 {[%emt 0:09:13]} 17. Bf1 {[%emt 0:10:11]} Bh5 {[%emt 0:05:59]} 18.
Ra7 {[%emt 0:06:23]} Qb8 {[%emt 0:03:41]} 19. Ra5 {[%emt 0:09:16]} Nfd7 {
[%emt 0:08:42]} 20. Ne2 {[%emt 0:16:19]} f5 {[%emt 0:04:18]} 21. Ng3 {[%emt 0:
00:00]} Bg6 {[%emt 0:02:35]} 22. h4 {[%emt 0:03:17]} b6 {[%emt 0:02:00]} 23.
Ra1 {[%emt 0:01:00]} Nf6 {[%emt 0:02:09]} 24. Qb2 {[%emt 0:01:24]} c6 {[%emt 0:
00:00]} 25. Ra6 {[%emt 0:03:22]} Qc8 {[%emt 0:08:57]} 26. Qa1 {[%emt 0:03:44]}
Nfg4 {[%emt 0:01:04]} 27. Be2 {[%emt 0:06:03]} h5 {[%emt 0:00:37]} 28. Bxe5 {
[%emt 0:07:30]} Nxe5 {[%emt 0:00:02]} 29. Bxh5 {[%emt 0:00:12]} Bxh5 {[%emt 0:
00:00]} 30. Nxh5 {[%emt 0:00:08]} Qd8 {[%emt 0:00:09]} 31. g3 {[%emt 0:00:34]}
g6 {[%emt 0:01:00]} 32. Nf4 {[%emt 0:00:34]} Qf6 {[%emt 0:00:27]} 33. Kg2 {
[%emt 0:00:35]} g5 {[%emt 0:00:42]} 34. hxg5 {[%emt 0:01:03]} Qxg5 {[%emt 0:00:
00]} 35. Ra8 {[%emt 0:01:48]} Rxa8 {[%emt 0:00:37]} 36. Qxa8+ {[%emt 0:00:06]}
Kf7 {[%emt 0:00:21]} 37. Qb7+ {[%emt 0:00:17]} Kf6 {[%emt 0:00:22]} 38. Qxb6 {
[%emt 0:00:22]} Qg4 {[%emt 0:00:20]} 39. Qd8+ {[%emt 0:00:10]} Kg7 {[%emt 0:00:
00]} 40. Qd4 {[%emt 0:00:46]} Qf3+ {[%emt 0:00:24]} 41. Kg1 {[%emt 0:30:29]}
Kf6 {[%emt 0:10:36]} 42. Qd6+ {[%emt 0:00:00]} Kg5 {[%emt 0:00:14]} 43. Qxe5 {
[%emt 0:00:00]} Qd1+ {[%emt 0:00:10]} 44. Kh2 {[%emt 0:00:00]} Kg4 {[%emt 0:00:
00]} 45. Ng2 {[%emt 0:00:00]} 1-0